[Event "Ural District-ch Women 2020"]
[Site "Chelyabinsk"]
[Date "2020.10.02"]
[Round "6.5"]
[White "Mesheryakova, Anfisa"]
[Black "Chigaeva, Anastasia"]
[Result "0-1"]
[ECO "C01"]
[WhiteElo "1505"]
[BlackElo "2175"]
[Annotator "ChessBase"]
[PlyCount "64"]
[EventDate "2020.10.01"]
[EventType "swiss"]
[EventCountry "RUS"]
[SourceTitle "playchess.com"]
[Source "ChessBase"]
[SourceQuality "1"]
[TimeControl "5400+30"]

1. e4 {[%emt 0:00:00]} e6 {[%emt 0:00:00]} 2. d4 {[%emt 0:00:00]} d5 {[%emt 0:00:00]} 3. exd5 {[%emt 0:00:00]} exd5 {[%emt 0:00:00]} 4. Bd3 {[%emt 0:00:04]} Bd6 {[%emt 0:00:00]} 5. Nf3 {[%emt 0:00:09]} Ne7 {[%emt 0:00:04]} 6. h3 {[%emt 0:00:20]} O-O {[%emt 0:02:50]} 7. c3 {[%emt 0:03:23]} Bf5 {[%emt 0:00:43]} 8. Qc2 {[%emt 0:01:58]} Qd7 {[%emt 0:01:16]} 9. Nh4 {[%emt 0:11:23]} Qe6+ {[%emt 0:06:19]} 10. Be3 {[%emt 0:00:21]} Bxd3 {[%emt 0:00:48]} 11. Qxd3 {[%emt 0:00:10]} Bf4 {[%emt 0:09:01]} 12. O-O {[%emt 0:10:06]} Bxe3 {[%emt 0:00:17]} 13. Qxe3 {[%emt 0:00:07]} Qxe3 {[%emt 0:00:29]} 14. fxe3 {[%emt 0:00:08]} f5 {[%emt 0:00:32]} 15. Nd2 {[%emt 0:00:30]} Nd7 {[%emt 0:00:18]} 16. Nhf3 {[%emt 0:00:59]} Rae8 {[%emt 0:01:39]} 17. Rfe1 {[%emt 0:01:42]} Rf6 {[%emt 0:01:53]} 18. c4 {[%emt 0:00:51]} Re6 {[%emt 0:03:20]} 19. Kf2 {[%emt 0:01:04]} h6 {[%emt 0:01:57]} 20. a3 {[%emt 0:02:34]} g5 {[%emt 0:05:25]} 21. Rac1 {[%emt 0:09:28]} g4 {[%emt 0:09:33]} 22. Nh4 {[%emt 0:01:01]} Rf8 {[%emt 0:06:52]} 23. Kg3 {[%emt 0:03:18]} Nf6 {[%emt 0:14:23]} 24. hxg4 {[%emt 0:02:31]} fxg4 {[%emt 0:10:11]} 25. cxd5 {[%emt 0:01:30]} Nexd5 {[%emt 0:01:11]} 26. Ng6 {[%emt 0:01:28]} Nh5+ {[%emt 0:02:57]} 27. Kxg4 {[%emt 0:10:45]} Rxg6+ {[%emt 0:00:13]} 28. Kxh5 {[%emt 0:00:06]} Rg5+ {[%emt 0:00:40]} 29. Kxh6 {[%emt 0:05:30]} Rgf5 {[%emt 0:02:00]} 30. Ne4 {[%emt 0:01:01]} R8f7 {[%emt 0:00:13]} 31. Ng5 {[%emt 0:14:47]} Rg7 {[%emt 0:00:20]} 32. Ne4 {[%emt 0:01:05]} Rh7+ {[%emt 0:00:13]} 0-1

[Event "Ural District-ch Women 2020"]
[Site "Chelyabinsk"]
[Date "2020.10.03"]
[Round "7.1"]
[White "Semenova, Elena"]
[Black "Chigaeva, Anastasia"]
[Result "1-0"]
[ECO "C02"]
[WhiteElo "2284"]
[BlackElo "2162"]
[Annotator "ChessBase"]
[PlyCount "99"]
[EventDate "2020.10.01"]
[EventType "swiss"]
[EventCountry "RUS"]
[SourceTitle "playchess.com"]
[Source "ChessBase"]
[SourceQuality "1"]
[TimeControl "5400+30"]

1. e4 {[%emt 0:00:00]} e6 {[%emt 0:00:00]} 2. d4 {[%emt 0:00:00]} d5 {[%emt 0:00:00]} 3. e5 {[%emt 0:00:00]} c5 {[%emt 0:00:02]} 4. c3 {[%emt 0:00:02]} Nc6 {[%emt 0:00:36]} 5. Nf3 {[%emt 0:00:15]} Bd7 {[%emt 0:01:22]} 6. Be2 {[%emt 0:00:59]} f6 {[%emt 0:05:35]} 7. Bd3 {[%emt 0:03:29]} Qb6 {[%emt 0:11:44]} 8. O-O {[%emt 0:02:48]} O-O-O {[%emt 0:09:41]} 9. Na3 {[%emt 0:13:45]} fxe5 {[%emt 0:10:20]} 10. Nxe5 {[%emt 0:05:47]} Nxe5 {[%emt 0:00:11]} 11. dxe5 {[%emt 0:00:02]} Ne7 {[%emt 0:04:26]} 12. Rb1 {[%emt 0:03:38]} Nc6 {[%emt 0:05:03]} 13. Bf4 {[%emt 0:05:28]} Be7 {[%emt 0:03:55]} 14. Nc2 {[%emt 0:03:35]} g5 {[%emt 0:01:34]} 15. Bg3 {[%emt 0:00:53]} h5 {[%emt 0:01:27]} 16. h3 {[%emt 0:00:04]} c4 {[%emt 0:08:08]} 17. Be2 {[%emt 0:00:36]} h4 {[%emt 0:00:29]} 18. Bh2 {[%emt 0:00:02]} Qc7 {[%emt 0:07:16]} 19. Nd4 {[%emt 0:08:11]} Nxd4 {[%emt 0:11:35]} 20. Qxd4 {[%emt 0:04:30]} Bc5 {[%emt 0:01:19]} 21. Qd2 {[%emt 0:05:11]} Rdf8 {[%emt 0:01:13]} 22. b4 {[%emt 0:01:27]} Bb6 {[%emt 0:01:41]} 23. Bg4 {[%emt 0:01:08]} Qd8 {[%emt 0:01:30]} 24. a4 {[%emt 0:03:10]} Qe7 {[%emt 0:01:49]} 25. a5 {[%emt 0:01:32]} Bc7 {[%emt 0:00:01]} 26. f3 {[%emt 0:08:46]} Qg7 {[%emt 0:04:03]} 27. Qe3 {[%emt 0:00:49]} Bb8 {[%emt 0:04:13]} 28. Kh1 {[%emt 0:05:18]} Rhg8 {[%emt 0:01:29]} 29. Rbe1 {[%emt 0:03:57]} Qg6 {[%emt 0:00:37]} 30. Bg1 {[%emt 0:01:29]} Qd3 {[%emt 0:01:17]} 31. Qc5+ {[%emt 0:02:02]} Kd8 {[%emt 0:00:02]} 32. Be3 {[%emt 0:01:34]} Rf7 {[%emt 0:00:30]} 33. Bd4 {[%emt 0:04:20]} Qc2 {[%emt 0:02:43]} 34. b5 {[%emt 0:02:28]} Qa4 {[%emt 0:00:27]} 35. Ra1 {[%emt 0:00:18]} Qb3 {[%emt 0:00:33]} 36. Rfb1 {[%emt 0:01:41]} Qc2 {[%emt 0:00:03]} 37. Qb4 {[%emt 0:00:48]} Bc8 {[%emt 0:00:42]} 38. Rb2 {[%emt 0:02:04]} Qd3 {[%emt 0:00:26]} 39. Rba2 {[%emt 0:02:12]} Qh7 {[%emt 0:00:39]} 40. a6 {[%emt 0:02:56]} b6 {[%emt 0:00:35]} 41. Bxb6+ {[%emt 0:00:57]} axb6 {[%emt 0:00:27]} 42. a7 {[%emt 0:00:01]} Bxa7 {[%emt 0:00:27]} 43. Qd6+ {[%emt 0:00:20]} Ke8 {[%emt 0:00:41]} 44. Bxe6 {[%emt 0:00:17]} Bxe6 {[%emt 0:00:30]} 45. Qxe6+ {[%emt 0:01:35]} Kf8 {[%emt 0:00:36]} 46. Qd6+ {[%emt 0:01:12]} Ke8 {[%emt 0:00:19]} 47. Rxa7 {[%emt 0:00:19]} Rxa7 {[%emt 0:00:34]} 48. Qb8+ {[%emt 0:00:04]} Kf7 {[%emt 0:00:15]} 49. Rxa7+ {[%emt 0:00:03]} Kg6 {[%emt 0:00:09]} 50. Qxb6+ {[%emt 0:00:03]} 1-0

[Event "Ural District-ch Women 2020"]
[Site "Chelyabinsk"]
[Date "2020.10.03"]
[Round "7.2"]
[White "Mukhina, Jana"]
[Black "Mikheeva, Galina"]
[Result "1/2-1/2"]
[ECO "C61"]
[WhiteElo "2025"]
[BlackElo "1901"]
[Annotator "ChessBase"]
[PlyCount "126"]
[EventDate "2020.10.01"]
[EventType "swiss"]
[EventCountry "RUS"]
[SourceTitle "playchess.com"]
[Source "ChessBase"]
[SourceQuality "1"]
[TimeControl "5400+30"]

1. e4 {[%emt 0:00:00]} e5 {[%emt 0:00:00]} 2. Nf3 {[%emt 0:00:00]} Nc6 {[%emt 0:00:00]} 3. Bb5 {[%emt 0:00:00]} Nd4 {[%emt 0:00:00]} 4. Nxd4 {[%emt 0:00:08]} exd4 {[%emt 0:00:00]} 5. O-O {[%emt 0:00:25]} c6 {[%emt 0:01:20]} 6. Bc4 {[%emt 0:12:14]} b5 {[%emt 0:06:02]} 7. Bb3 {[%emt 0:00:16]} h5 {[%emt 0:21:02]} 8. f4 {[%emt 0:28:28]} Bc5 {[%emt 0:01:13]} 9. d3 {[%emt 0:03:23]} d6 {[%emt 0:14:00]} 10. f5 {[%emt 0:02:49]} Bd7 {[%emt 0:15:34]} 11. Nd2 {[%emt 0:02:11]} Nf6 {[%emt 0:00:15]} 12. Nf3 {[%emt 0:05:41]} Ng4 {[%emt 0:08:55]} 13. Bf4 {[%emt 0:00:43]} Qe7 {[%emt 0:02:46]} 14. h3 {[%emt 0:17:51]} Ne5 {[%emt 0:03:01]} 15. a4 {[%emt 0:04:12]} b4 {[%emt 0:03:03]} 16. a5 {[%emt 0:01:35]} Rb8 {[%emt 0:07:54]} 17. Kh1 {[%emt 0:02:27]} Nxf3 {[%emt 0:02:26]} 18. Qxf3 {[%emt 0:00:13]} f6 {[%emt 0:01:40]} 19. Bc4 {[%emt 0:01:43]} Kd8 {[%emt 0:01:31]} 20. Ra4 {[%emt 0:05:12]} Rb7 {[%emt 0:02:57]} 21. Qg3 {[%emt 0:03:38]} Rb8 {[%emt 0:01:13]} 22. Qe1 {[%emt 0:01:00]} Re8 {[%emt 0:01:09]} 23. Qh4 {[%emt 0:04:07]} Rh8 {[%emt 0:00:05]} 24. Bb3 {[%emt 0:01:07]} Kc7 {[%emt 0:02:30]} 25. Bd2 {[%emt 0:01:36]} Kc8 {[%emt 0:02:00]} 26. Qe1 {[%emt 0:01:16]} d5 {[%emt 0:00:52]} 27. exd5 {[%emt 0:00:40]} Qxe1 {[%emt 0:00:20]} 28. Bxe1 {[%emt 0:00:13]} cxd5 {[%emt 0:00:13]} 29. Ra1 {[%emt 0:00:02]} Bc6 {[%emt 0:00:13]} 30. Bg3 {[%emt 0:01:10]} Rb7 {[%emt 0:00:09]} 31. Rfe1 {[%emt 0:00:37]} Re7 {[%emt 0:01:45]} 32. Rxe7 {[%emt 0:00:09]} Bxe7 {[%emt 0:00:02]} 33. Bf2 {[%emt 0:00:03]} Bc5 {[%emt 0:00:13]} 34. c3 {[%emt 0:00:26]} bxc3 {[%emt 0:00:11]} 35. bxc3 {[%emt 0:00:04]} Rd8 {[%emt 0:01:35]} 36. cxd4 {[%emt 0:00:48]} Bb4 {[%emt 0:00:33]} 37. Bd1 {[%emt 0:01:09]} Rh8 {[%emt 0:00:47]} 38. Ba4 {[%emt 0:00:47]} Bxa4 {[%emt 0:00:44]} 39. Rxa4 {[%emt 0:00:01]} Bc3 {[%emt 0:00:12]} 40. Ra3 {[%emt 0:00:22]} Bb4 {[%emt 0:00:14]} 41. Ra4 {[%emt 0:01:03]} Bc3 {[%emt 0:00:24]} 42. Kg1 {[%emt 0:00:20]} Kd7 {[%emt 0:00:53]} 43. Ra3 {[%emt 0:00:21]} Rc8 {[%emt 0:00:18]} 44. Kh2 {[%emt 0:00:30]} Bb4 {[%emt 0:00:14]} 45. Ra4 {[%emt 0:00:08]} Bd2 {[%emt 0:01:15]} 46. Ra2 {[%emt 0:00:04]} Bf4+ {[%emt 0:00:14]} 47. Bg3 {[%emt 0:01:30]} Bc1 {[%emt 0:00:40]} 48. a6 {[%emt 0:00:41]} Bg5 {[%emt 0:00:50]} 49. Ra5 {[%emt 0:00:15]} Rc6 {[%emt 0:00:29]} 50. Rxd5+ {[%emt 0:00:06]} Kc8 {[%emt 0:00:28]} 51. Rd6 {[%emt 0:01:14]} Rc3 {[%emt 0:00:31]} 52. d5 {[%emt 0:00:27]} h4 {[%emt 0:00:21]} 53. Be1 {[%emt 0:00:32]} Rxd3 {[%emt 0:00:41]} 54. Rc6+ {[%emt 0:00:31]} Kd7 {[%emt 0:00:07]} 55. Kg1 {[%emt 0:00:29]} Be3+ {[%emt 0:00:51]} 56. Kf1 {[%emt 0:00:08]} Rxd5 {[%emt 0:00:01]} 57. Rc4 {[%emt 0:00:15]} Rxf5+ {[%emt 0:00:19]} 58. Ke2 {[%emt 0:00:02]} Bb6 {[%emt 0:01:01]} 59. Bxh4 {[%emt 0:00:19]} Ra5 {[%emt 0:00:15]} 60. Be1 {[%emt 0:00:37]} Rxa6 {[%emt 0:00:04]} 61. Rg4 {[%emt 0:00:31]} g5 {[%emt 0:00:24]} 62. h4 {[%emt 0:00:10]} gxh4 {[%emt 0:00:05]} 63. Bxh4 {[%emt 0:00:15]} Bc5 {[%emt 0:01:10]} 1/2-1/2

[Event "Ural District-ch Women 2020"]
[Site "Chelyabinsk"]
[Date "2020.10.03"]
[Round "7.3"]
[White "Mironenko, Galina"]
[Black "Filippova, Margarita"]
[Result "1-0"]
[ECO "C42"]
[WhiteElo "2061"]
[BlackElo "1896"]
[Annotator "ChessBase"]
[PlyCount "99"]
[EventDate "2020.10.01"]
[EventType "swiss"]
[EventCountry "RUS"]
[SourceTitle "playchess.com"]
[Source "ChessBase"]
[SourceQuality "1"]
[TimeControl "5400+30"]

1. e4 {[%emt 0:00:00]} e5 {[%emt 0:00:00]} 2. Nf3 {[%emt 0:00:00]} Nf6 {[%emt 0:00:00]} 3. Nxe5 {[%emt 0:00:00]} d6 {[%emt 0:00:00]} 4. Nf3 {[%emt 0:00:00]} Nxe4 {[%emt 0:00:00]} 5. d4 {[%emt 0:00:00]} d5 {[%emt 0:00:32]} 6. Bd3 {[%emt 0:00:02]} Bd6 {[%emt 0:01:39]} 7. O-O {[%emt 0:00:09]} O-O {[%emt 0:00:05]} 8. c4 {[%emt 0:00:06]} c6 {[%emt 0:00:06]} 9. Nc3 {[%emt 0:00:05]} Nxc3 {[%emt 0:00:46]} 10. bxc3 {[%emt 0:00:06]} h6 {[%emt 0:00:10]} 11. Re1 {[%emt 0:00:49]} Nd7 {[%emt 0:00:28]} 12. cxd5 {[%emt 0:00:47]} cxd5 {[%emt 0:00:04]} 13. Ne5 {[%emt 0:04:07]} Nf6 {[%emt 0:04:59]} 14. Qf3 {[%emt 0:05:49]} Be6 {[%emt 0:09:59]} 15. Rb1 {[%emt 0:09:47]} Rb8 {[%emt 0:04:17]} 16. Bf4 {[%emt 0:04:00]} a6 {[%emt 0:04:48]} 17. Kh1 {[%emt 0:05:58]} Re8 {[%emt 0:01:14]} 18. Bg3 {[%emt 0:18:11]} Ne4 {[%emt 0:05:32]} 19. Bxe4 {[%emt 0:06:21]} dxe4 {[%emt 0:00:08]} 20. Qxe4 {[%emt 0:03:38]} f6 {[%emt 0:07:36]} 21. Nf3 {[%emt 0:06:49]} Bxg3 {[%emt 0:08:16]} 22. hxg3 {[%emt 0:00:15]} Qd7 {[%emt 0:00:11]} 23. Qc2 {[%emt 0:03:20]} Rec8 {[%emt 0:06:03]} 24. Nh4 {[%emt 0:04:32]} b5 {[%emt 0:06:32]} 25. Ng6 {[%emt 0:04:43]} Re8 {[%emt 0:01:57]} 26. Nf4 {[%emt 0:02:40]} Bf5 {[%emt 0:02:37]} 27. Qb3+ {[%emt 0:00:29]} Kh7 {[%emt 0:00:10]} 28. Rbd1 {[%emt 0:01:29]} a5 {[%emt 0:05:13]} 29. d5 {[%emt 0:05:23]} a4 {[%emt 0:06:50]} 30. Qb4 {[%emt 0:02:15]} Rbc8 {[%emt 0:00:23]} 31. Ne6 {[%emt 0:02:40]} Kg8 {[%emt 0:00:53]} 32. Rd4 {[%emt 0:04:13]} h5 {[%emt 0:04:00]} 33. Qa5 {[%emt 0:04:21]} Re7 {[%emt 0:02:34]} 34. Re3 {[%emt 0:01:30]} Bb1 {[%emt 0:02:03]} 35. Rd2 {[%emt 0:01:23]} h4 {[%emt 0:02:31]} 36. Qb4 {[%emt 0:00:51]} Bf5 {[%emt 0:04:27]} 37. Rd4 {[%emt 0:00:30]} hxg3 {[%emt 0:05:03]} 38. Rxg3 {[%emt 0:00:09]} Qe8 {[%emt 0:01:41]} 39. Nf4 {[%emt 0:01:20]} Re1+ {[%emt 0:02:31]} 40. Kh2 {[%emt 0:00:14]} Rb1 {[%emt 0:00:30]} 41. Qd6 {[%emt 0:00:44]} Qe5 {[%emt 0:01:51]} 42. Qa6 {[%emt 0:00:31]} Kf7 {[%emt 0:00:49]} 43. Re3 {[%emt 0:00:32]} Rh8+ {[%emt 0:00:53]} 44. Kg3 {[%emt 0:00:05]} Qb8 {[%emt 0:00:55]} 45. d6 {[%emt 0:00:36]} g5 {[%emt 0:00:22]} 46. Re7+ {[%emt 0:00:17]} Kf8 {[%emt 0:00:05]} 47. Ra7 {[%emt 0:01:01]} gxf4+ {[%emt 0:01:07]} 48. Kxf4 {[%emt 0:00:07]} Bc8 {[%emt 0:00:35]} 49. Ra8 {[%emt 0:00:15]} Rh4+ {[%emt 0:00:05]} 50. Kg3 {[%emt 0:00:29]} 1-0

[Event "Ural District-ch Women 2020"]
[Site "Chelyabinsk"]
[Date "2020.10.03"]
[Round "7.4"]
[White "Filippova, Darya"]
[Black "Baranova, Elizaveta"]
[Result "0-1"]
[ECO "B12"]
[WhiteElo "2032"]
[BlackElo "1794"]
[Annotator "ChessBase"]
[PlyCount "96"]
[EventDate "2020.10.01"]
[EventType "swiss"]
[EventCountry "RUS"]
[SourceTitle "playchess.com"]
[Source "ChessBase"]
[SourceQuality "1"]
[TimeControl "5400+30"]

1. e4 {[%emt 0:00:00]} c6 {[%emt 0:00:00]} 2. d4 {[%emt 0:00:00]} d5 {[%emt 0:00:00]} 3. e5 {[%emt 0:00:07]} Bf5 {[%emt 0:00:00]} 4. h4 {[%emt 0:00:19]} h6 {[%emt 0:00:23]} 5. c4 {[%emt 0:05:28]} e6 {[%emt 0:00:41]} 6. Nc3 {[%emt 0:00:30]} Ne7 {[%emt 0:02:00]} 7. Be3 {[%emt 0:03:11]} dxc4 {[%emt 0:05:05]} 8. Bxc4 {[%emt 0:00:24]} Nd7 {[%emt 0:01:04]} 9. Nge2 {[%emt 0:03:02]} Nb6 {[%emt 0:05:03]} 10. Bb3 {[%emt 0:00:16]} Ned5 {[%emt 0:01:10]} 11. Qd2 {[%emt 0:02:12]} Be7 {[%emt 0:01:43]} 12. Ng3 {[%emt 0:02:44]} Bh7 {[%emt 0:01:33]} 13. Nh5 {[%emt 0:00:59]} Rg8 {[%emt 0:03:07]} 14. a4 {[%emt 0:07:01]} a5 {[%emt 0:01:39]} 15. Kf1 {[%emt 0:04:45]} Rc8 {[%emt 0:10:14]} 16. Nf4 {[%emt 0:03:08]} Nxf4 {[%emt 0:03:12]} 17. Bxf4 {[%emt 0:00:10]} Bxh4 {[%emt 0:02:22]} 18. Ne2 {[%emt 0:04:01]} Nd5 {[%emt 0:01:11]} 19. Bxd5 {[%emt 0:03:32]} cxd5 {[%emt 0:01:17]} 20. Rc1 {[%emt 0:03:11]} Rxc1+ {[%emt 0:01:37]} 21. Qxc1 {[%emt 0:00:24]} Bd3 {[%emt 0:01:11]} 22. Rh3 {[%emt 0:00:34]} Ba6 {[%emt 0:02:05]} 23. Rc3 {[%emt 0:01:04]} Kd7 {[%emt 0:02:21]} 24. Bd2 {[%emt 0:03:39]} Be7 {[%emt 0:03:59]} 25. Rf3 {[%emt 0:02:46]} f6 {[%emt 0:02:21]} 26. Ke1 {[%emt 0:08:36]} Qb6 {[%emt 0:00:48]} 27. Bc3 {[%emt 0:01:22]} Rc8 {[%emt 0:01:40]} 28. Qd2 {[%emt 0:02:44]} Bxe2 {[%emt 0:01:42]} 29. Kxe2 {[%emt 0:02:18]} Qb3 {[%emt 0:02:17]} 30. Rg3 {[%emt 0:00:51]} Bf8 {[%emt 0:03:24]} 31. exf6 {[%emt 0:00:43]} gxf6 {[%emt 0:00:02]} 32. Rg6 {[%emt 0:03:15]} Ke7 {[%emt 0:01:02]} 33. Ke1 {[%emt 0:01:37]} Kf7 {[%emt 0:01:18]} 34. Rg3 {[%emt 0:00:18]} Qxa4 {[%emt 0:00:29]} 35. Qd3 {[%emt 0:01:59]} f5 {[%emt 0:01:48]} 36. Qe2 {[%emt 0:00:35]} b6 {[%emt 0:04:13]} 37. Re3 {[%emt 0:02:16]} Qa1+ {[%emt 0:11:53]} 38. Kd2 {[%emt 0:00:12]} Bb4 {[%emt 0:00:29]} 39. Qh5+ {[%emt 0:01:50]} Ke7 {[%emt 0:00:03]} 40. Qxh6 {[%emt 0:00:29]} Qxb2+ {[%emt 0:00:39]} 41. Kd1 {[%emt 0:00:07]} Qb1+ {[%emt 0:00:44]} 42. Ke2 {[%emt 0:00:11]} Qc2+ {[%emt 0:00:56]} 43. Kf1 {[%emt 0:01:57]} Rc6 {[%emt 0:03:59]} 44. Bxb4+ {[%emt 0:01:28]} axb4 {[%emt 0:00:22]} 45. Kg1 {[%emt 0:00:35]} Qd1+ {[%emt 0:00:53]} 46. Kh2 {[%emt 0:00:14]} Qxd4 {[%emt 0:00:16]} 47. Qh7+ {[%emt 0:00:15]} Kd6 {[%emt 0:00:16]} 48. Qf7 {[%emt 0:00:16]} Qh4+ {[%emt 0:00:29]} 0-1

[Event "Ural District-ch Women 2020"]
[Site "Chelyabinsk"]
[Date "2020.10.03"]
[Round "7.5"]
[White "Shnayder, Violetta"]
[Black "Kalenichenko, Alina"]
[Result "1-0"]
[ECO "A05"]
[WhiteElo "1917"]
[BlackElo "1513"]
[Annotator "ChessBase"]
[PlyCount "109"]
[EventDate "2020.10.01"]
[EventType "swiss"]
[EventCountry "RUS"]
[SourceTitle "playchess.com"]
[Source "ChessBase"]
[SourceQuality "1"]
[TimeControl "5400+30"]

1. Nf3 {[%emt 0:00:00]} Nf6 {[%emt 0:00:00]} 2. g3 {[%emt 0:00:00]} g6 {[%emt 0:00:00]} 3. b3 {[%emt 0:00:35]} Bg7 {[%emt 0:00:00]} 4. Bb2 {[%emt 0:00:09]} O-O {[%emt 0:00:00]} 5. Bg2 {[%emt 0:00:09]} c5 {[%emt 0:00:29]} 6. c4 {[%emt 0:01:11]} Nc6 {[%emt 0:00:14]} 7. O-O {[%emt 0:01:37]} d6 {[%emt 0:02:52]} 8. d4 {[%emt 0:00:57]} cxd4 {[%emt 0:02:29]} 9. Nxd4 {[%emt 0:00:11]} Qb6 {[%emt 0:01:34]} 10. Nxc6 {[%emt 0:13:13]} bxc6 {[%emt 0:00:13]} 11. e4 {[%emt 0:00:34]} Bg4 {[%emt 0:02:56]} 12. Qc2 {[%emt 0:03:15]} Nd7 {[%emt 0:07:29]} 13. Bxg7 {[%emt 0:08:10]} Kxg7 {[%emt 0:00:09]} 14. h3 {[%emt 0:02:09]} Be6 {[%emt 0:00:10]} 15. Qc3+ {[%emt 0:01:50]} f6 {[%emt 0:00:20]} 16. Kh2 {[%emt 0:07:20]} Bf7 {[%emt 0:00:41]} 17. f4 {[%emt 0:01:18]} h5 {[%emt 0:04:20]} 18. Nd2 {[%emt 0:02:07]} Rad8 {[%emt 0:02:11]} 19. Rad1 {[%emt 0:03:11]} e5 {[%emt 0:16:19]} 20. Nf3 {[%emt 0:02:40]} Nc5 {[%emt 0:02:33]} 21. Nh4 {[%emt 0:02:07]} Ne6 {[%emt 0:07:21]} 22. f5 {[%emt 0:06:00]} Nd4 {[%emt 0:00:28]} 23. Nf3 {[%emt 0:03:12]} c5 {[%emt 0:04:34]} 24. fxg6 {[%emt 0:03:13]} Bxg6 {[%emt 0:00:16]} 25. Nh4 {[%emt 0:00:15]} Rd7 {[%emt 0:08:25]} 26. Bf3 {[%emt 0:02:04]} Rh8 {[%emt 0:03:27]} 27. g4 {[%emt 0:08:35]} hxg4 {[%emt 0:04:26]} 28. Bxg4 {[%emt 0:00:27]} Rxh4 {[%emt 0:05:31]} 29. Bxd7 {[%emt 0:00:19]} Rxe4 {[%emt 0:01:46]} 30. Qg3 {[%emt 0:05:25]} Re2+ {[%emt 0:06:23]} 31. Rf2 {[%emt 0:00:22]} Rxf2+ {[%emt 0:00:27]} 32. Qxf2 {[%emt 0:00:04]} Qb7 {[%emt 0:00:14]} 33. Bg4 {[%emt 0:00:51]} f5 {[%emt 0:00:21]} 34. Be2 {[%emt 0:00:26]} Qb4 {[%emt 0:04:01]} 35. Qg2 {[%emt 0:02:01]} Nxe2 {[%emt 0:02:59]} 36. Qxe2 {[%emt 0:00:09]} Qb8 {[%emt 0:00:38]} 37. Qg2 {[%emt 0:06:35]} e4 {[%emt 0:04:20]} 38. Qg3 {[%emt 0:00:30]} Qe8 {[%emt 0:00:41]} 39. h4 {[%emt 0:06:09]} Kh7 {[%emt 0:01:20]} 40. Qxd6 {[%emt 0:01:25]} e3 {[%emt 0:00:43]} 41. Qd7+ {[%emt 0:00:53]} Qxd7 {[%emt 0:00:22]} 42. Rxd7+ {[%emt 0:00:01]} Kh6 {[%emt 0:00:10]} 43. Kg3 {[%emt 0:00:25]} e2 {[%emt 0:00:25]} 44. Kf2 {[%emt 0:00:07]} Bh5 {[%emt 0:00:07]} 45. Rxa7 {[%emt 0:00:26]} Bg4 {[%emt 0:00:27]} 46. a4 {[%emt 0:00:11]} Kh5 {[%emt 0:00:18]} 47. Rh7+ {[%emt 0:00:12]} Kg6 {[%emt 0:00:04]} 48. Rh8 {[%emt 0:00:07]} f4 {[%emt 0:00:34]} 49. a5 {[%emt 0:00:12]} Bf3 {[%emt 0:00:27]} 50. a6 {[%emt 0:00:12]} Kf5 {[%emt 0:00:23]} 51. a7 {[%emt 0:00:14]} Kg4 {[%emt 0:00:22]} 52. Re8 {[%emt 0:00:21]} e1=Q+ {[%emt 0:00:29]} 53. Kxe1 {[%emt 0:00:07]} Kxh4 {[%emt 0:00:11]} 54. a8=Q {[%emt 0:00:06]} Bxa8 {[%emt 0:00:07]} 55. Rxa8 {[%emt 0:00:02]} 1-0

[Event "Ural District-ch Women 2020"]
[Site "Chelyabinsk"]
[Date "2020.10.04"]
[Round "8.1"]
[White "Semenova, Elena"]
[Black "Shnayder, Violetta"]
[Result "1-0"]
[ECO "B40"]
[WhiteElo "2283"]
[BlackElo "1923"]
[Annotator "ChessBase"]
[PlyCount "89"]
[EventDate "2020.10.01"]
[EventType "swiss"]
[EventCountry "RUS"]
[SourceTitle "playchess.com"]
[Source "ChessBase"]
[SourceQuality "1"]
[TimeControl "5400+30"]

1. e4 {[%emt 0:00:00]} c5 {[%emt 0:00:10]} 2. Nf3 {[%emt 0:00:00]} e6 {[%emt 0:00:08]} 3. d4 {[%emt 0:00:21]} cxd4 {[%emt 0:00:08]} 4. Nxd4 {[%emt 0:00:03]} Nf6 {[%emt 0:00:08]} 5. Nc3 {[%emt 0:00:11]} Nc6 {[%emt 0:01:12]} 6. Nxc6 {[%emt 0:00:20]} bxc6 {[%emt 0:00:08]} 7. e5 {[%emt 0:00:21]} Nd5 {[%emt 0:00:25]} 8. Ne4 {[%emt 0:00:54]} Qc7 {[%emt 0:01:57]} 9. f4 {[%emt 0:00:05]} Qb6 {[%emt 0:02:19]} 10. c4 {[%emt 0:00:30]} Bb4+ {[%emt 0:01:33]} 11. Ke2 {[%emt 0:00:05]} f5 {[%emt 0:02:57]} 12. Nf2 {[%emt 0:00:42]} Qa6 {[%emt 0:04:44]} 13. Kf3 {[%emt 0:03:04]} Nc7 {[%emt 0:04:13]} 14. Be3 {[%emt 0:07:33]} Be7 {[%emt 0:05:07]} 15. Qc2 {[%emt 0:07:42]} c5 {[%emt 0:01:25]} 16. Kg3 {[%emt 0:03:04]} Bb7 {[%emt 0:13:00]} 17. Be2 {[%emt 0:06:56]} g5 {[%emt 0:05:27]} 18. Bh5+ {[%emt 0:04:13]} Kf8 {[%emt 0:00:55]} 19. fxg5 {[%emt 0:00:45]} d6 {[%emt 0:01:21]} 20. Bf4 {[%emt 0:05:08]} Rg8 {[%emt 0:02:03]} 21. h4 {[%emt 0:00:34]} Ne8 {[%emt 0:02:49]} 22. Qc3 {[%emt 0:08:29]} Rd8 {[%emt 0:09:22]} 23. Rad1 {[%emt 0:03:03]} d5 {[%emt 0:03:53]} 24. b3 {[%emt 0:06:19]} d4 {[%emt 0:01:36]} 25. Qd2 {[%emt 0:01:32]} Ng7 {[%emt 0:13:21]} 26. Be2 {[%emt 0:04:09]} Be4 {[%emt 0:00:53]} 27. Kh2 {[%emt 0:04:59]} Qc6 {[%emt 0:01:12]} 28. Rhg1 {[%emt 0:01:35]} d3 {[%emt 0:03:32]} 29. Bxd3 {[%emt 0:05:05]} Bxd3 {[%emt 0:02:01]} 30. Nxd3 {[%emt 0:00:13]} Nh5 {[%emt 0:00:42]} 31. Qe2 {[%emt 0:02:19]} Qe8 {[%emt 0:02:50]} 32. Be3 {[%emt 0:00:26]} h6 {[%emt 0:01:49]} 33. Nxc5 {[%emt 0:02:27]} Qg6 {[%emt 0:00:18]} 34. Rxd8+ {[%emt 0:02:46]} Bxd8 {[%emt 0:00:06]} 35. Rd1 {[%emt 0:00:45]} Bc7 {[%emt 0:02:21]} 36. Qf3 {[%emt 0:02:15]} Bxe5+ {[%emt 0:00:30]} 37. Kg1 {[%emt 0:00:02]} f4 {[%emt 0:01:38]} 38. Nd7+ {[%emt 0:00:36]} Kg7 {[%emt 0:00:44]} 39. Nxe5 {[%emt 0:00:13]} Qc2 {[%emt 0:00:09]} 40. Qb7+ {[%emt 0:00:53]} Kh8 {[%emt 0:00:10]} 41. Rd8 {[%emt 0:04:44]} Rxd8 {[%emt 0:02:37]} 42. Nf7+ {[%emt 0:00:05]} Kg8 {[%emt 0:00:04]} 43. Nxh6+ {[%emt 0:00:37]} Kh8 {[%emt 0:00:15]} 44. Bd4+ {[%emt 0:03:00]} Rxd4 {[%emt 0:00:31]} 45. Qb8+ {[%emt 0:00:10]} 1-0